lending/lending_fUSD_20250130
["ID","MTS","AMOUNT","RATE_DAILY","PERIOD"]
[350952362,1738237832466,-150.0,0.000143,2]
[350952363,1738237832476,-150.0,0.000143,2]
[350952364,1738237832486,-600.0,0.00015,2]
[350952365,1738237832495,-195.33,0.00016813,2]
[350952366,1738237832504,-150.0,0.00016986,2]
[350952367,1738237832513,-650.0,0.00017,2]
[350952368,1738237832523,-3510.0,0.000171,2]
[350952369,1738237832532,-715.06,0.00017153,2]
[350952370,1738237832541,-150.0,0.0001771,2]
[350952371,1738237832550,-150.0,0.0001802,2]
[350952372,1738237832561,-150.0,0.00018338,2]
[350952373,1738237832570,-215.41,0.00018568,2]
[350952374,1738237832579,-353.04,0.00018746,2]
[350952375,1738237832589,-150.0,0.00018755,2]
[350952376,1738237832599,-300.0,0.00018762,2]
[350952377,1738237832608,-150.0,0.00018764,2]
[350952378,1738237832618,-150.0,0.00018785,2]
[350952379,1738237832628,-300.0,0.00018839,2]
[350952380,1738237832639,-150.0,0.00018848,2]
[350952381,1738237832648,-1000.0,0.00018904,9]
[350952382,1738237832658,-252.62,0.0001894,2]
[350952383,1738237832667,-150.0,0.00018963,2]
[350952384,1738237832677,-150.0,0.00019004,2]
[350952385,1738237832687,-172.42,0.00019016,2]
[350952386,1738237832696,-500.0,0.00019164,2]
[350952387,1738237832705,-500.0,0.00019164,2]
[350952388,1738237832715,-150.0,0.00019164,2]
[350952389,1738237832725,-1000.0,0.00019169,2]
[350952390,1738237832735,-150.17,0.00019178,2]
[350952391,1738237832751,-166.79,0.00019212,2]
[350952392,1738237832760,-150.0,0.00019292,2]
[350952393,1738237832770,-150.0,0.00019298,2]
[350952394,1738237832780,-150.0,0.00019375,2]
[350952395,1738237832790,-150.0,0.00019392,2]
[350952396,1738237832800,-715.06,0.00019416,2]
[350952397,1738237832809,-193.12,0.00019425,2]
[350952398,1738237832820,-263.3885124,0.0001944,2]
[350952399,1738237832831,-150.0,0.00019441,2]
[350952400,1738237832840,-150.0,0.00019481,2]
[350952401,1738237832850,-215.41,0.00019497,2]
[350952402,1738237832860,-150.0,0.00019572,2]
[350952403,1738237832873,-810.5493,0.000196,2]
[350952404,1738237832882,-2083.568,0.000196,2]
[350952406,1738237832892,-150.0,0.00019641,2]
[350952408,1738237832902,-150.0,0.00019695,2]
[350952410,1738237832912,-166.83,0.000197,2]
[350952412,1738237832921,-6204.05358955,0.000197,2]
[350952480,1738237838309,-19223.94641045,0.000197,2]
[350952481,1738237838319,-439.12,0.00019726,2]
[350952482,1738237838329,-774.18,0.00019726,2]
[350952483,1738237838338,-439.12,0.00019726,2]
[350952484,1738237838348,-774.18,0.00019726,2]
[350952485,1738237838357,-439.12,0.00019726,2]
[350952486,1738237838367,-774.18,0.00019726,2]
[350952487,1738237838378,-774.18,0.00019726,2]
[350952488,1738237838388,-439.12,0.00019726,2]
[350952489,1738237838398,-774.18,0.00019726,2]
[350952490,1738237838408,-439.12,0.00019726,2]
[350952491,1738237838417,-439.12,0.00019726,2]
[350952492,1738237838426,-771.35,0.00019726,2]
[350952493,1738237838435,-150.0,0.0001975,2]
[350952494,1738237838446,-5736.43858955,0.000198,2]
[350952495,1738237838458,-14263.56141045,0.000198,2]
[350952496,1738237838468,-150.0,0.00019818,2]
[350952497,1738237838478,-150.0,0.00019838,2]
[350952498,1738237838489,-150.17,0.00019863,2]
[350952499,1738237838500,-3730.94557146,0.0001988,2]
[350952500,1738237838509,-2276.67473,0.0001988,2]
[350952501,1738237838518,-835.4944,0.000199,2]
[350952502,1738237838528,-221.4215,0.000199,2]
[350952503,1738237838538,-2693.07600527,0.000199,2]
[350952504,1738237838548,-222.41940467,0.00019901,2]
[350952505,1738237838557,-150.0,0.00019953,2]
[350952506,1738237838568,-2693.07600514,0.00019969,2]
[350952507,1738237838578,-752.57719937,0.00019973,2]
[350952508,1738237838587,-300.0,0.0001998,2]
[350952509,1738237838598,-222.41940459,0.0001999,2]
[350952510,1738237838608,-37814.58150676,0.0002,4]
[350952511,1738237838618,-242.40096778,0.0002,30]
[350952512,1738237838627,-160.50371506,0.0002,15]
[350952513,1738237838637,-25936.23,0.0002,5]
[350952514,1738237838647,-150.0,0.00020001,2]
[350952515,1738237838656,-12500.0,0.00020002,2]
[350952516,1738237838665,-150.0,0.00020003,2]
[350952517,1738237838675,-150.0,0.00020007,2]
[350952518,1738237838684,-2693.07600514,0.00020038,2]
[350952519,1738237838694,-752.57719937,0.00020055,2]
[350952520,1738237838703,-150.0,0.0002006,2]
[350952521,1738237838712,-222.41940459,0.00020079,2]
[350952522,1738237838722,-2503.42,0.00020083,2]
[350952523,1738237838731,-150.0,0.00020085,2]
[350952524,1738237838741,-1000.0,0.000201,2]
[350952525,1738237838750,-2693.07600514,0.00020107,2]
[350952526,1738237838760,-150.0,0.00020115,2]
[350952527,1738237838770,-1834.75,0.00020139,2]
[350952528,1738237838780,-150.0,0.00020164,2]
[350952529,1738237838789,-752.57719937,0.00020164,2]
[350952530,1738237838799,-418.1674,0.00020164,2]
[350952531,1738237838809,-222.41940459,0.00020167,2]
[350952532,1738237838820,-2693.07600514,0.00020176,2]
[350952533,1738237838830,-7974.0,0.00020196,2]
[350952534,1738237838840,-1478.0671742,0.00020199,3]
[350952535,1738237838849,-17898.5068,0.000202,2]
[350952536,1738237838859,-1000.0,0.000202,20]
[350952537,1738237838872,-12500.0,0.000202,2]
[350952538,1738237838882,-153.60849587,0.000202,2]
[350952539,1738237838892,-150.0,0.00020209,2]
[350952540,1738237838902,-150.0,0.0002023,2]
[350952541,1738237838912,-177.4,0.00020236,2]
[350952542,1738237838921,-150.0,0.00020236,2]
[350952543,1738237838930,-150.0,0.00020236,2]
[350952544,1738237838940,-8500.0,0.0002024,2]
[350952545,1738237838951,-2693.07600514,0.00020245,2]
[350952546,1738237838960,-752.57719937,0.00020247,2]
[350952547,1738237838970,-222.41940459,0.00020256,2]
[350952548,1738237838979,-1000.0,0.0002026,2]
[350952549,1738237838988,-601.51301047,0.00020261,2]
[350952551,1738237838998,-150.0,0.00020262,2]
[350952553,1738237839008,-510.57,0.00020269,7]
[350952554,1738237839018,-510.57,0.00020269,7]
[350952555,1738237839028,-510.57,0.00020269,7]
[350952556,1738237839038,-510.57,0.00020269,7]
[350952557,1738237839047,-152.0,0.00020281,3]
[350952558,1738237839056,-150.0,0.00020287,2]
[350952559,1738237839067,-1000.0,0.000203,2]
[350952560,1738237839077,-500.0,0.000203,2]
[350952561,1738237839086,-21070.041,0.000203,2]
[350952562,1738237839095,-88807.0273,0.000203,2]
[350952563,1738237839104,-5000.0,0.000203,2]
[350952564,1738237839113,-38121.998274,0.000203,2]
[350952565,1738237839123,-1000.0,0.000203,2]
[350952566,1738237839133,-318.35774728,0.000203,2]
[350952567,1738237839142,-150.0,0.00020313,2]
[350952568,1738237839152,-2693.07600514,0.00020314,2]
[350952569,1738237839161,-153.60849583,0.00020325,2]
[350952570,1738237839171,-219.35873274,0.00020328,2]
[350952571,1738237839180,-164.6963748,0.00020328,2]
[350952572,1738237839190,-222.41940459,0.00020345,2]
[350952573,1738237839199,-752.57719937,0.00020356,2]
[350952574,1738237839209,-67459.58365188,0.00020359,4]
[350952575,1738237839219,-200.0,0.00020364,4]
[350952576,1738237839229,-52462.28329621,0.00020366,4]
[350952577,1738237839239,-162.69116789,0.00020373,2]
[350952578,1738237839249,-4401.77658798,0.00020376,4]
[350952579,1738237839259,-11406.9223476,0.00020379,4]
[350952580,1738237839268,-1099.45810628,0.0002038,4]
[350952581,1738237839277,-2693.07600514,0.00020383,2]
[350952582,1738237839288,-3298.37431884,0.00020385,4]
[350952583,1738237839297,-922.00882901,0.0002039,2]
[350952584,1738237839306,-7214.21627671,0.00020392,4]
[350952585,1738237839316,-500.55058083,0.00020395,4]
[350952586,1738237839326,-52462.28329621,0.00020397,4]
[350952587,1738237839335,-67459.58365188,0.00020399,4]
[350952588,1738237839344,-999.0,0.00020399,2]
[350952589,1738237839355,-606.0,0.000204,2]
[350952590,1738237839365,-158.7823059,0.000204,2]
[350952591,1738237839375,-167145.88675622,0.000204,2]
[350952593,1738237839387,-621.561342,0.000204,2]
[350952597,1738237839419,-5255.92241343,0.000204,2]
[350952600,1738237839434,-452.28659435,0.000204,2]
[350952602,1738237839446,-608.26421048,0.000204,2]
[350952606,1738237839468,-3858.37018707,0.000204,2]
[350952608,1738237839481,-999.74875032,0.000204,2]
[350952612,1738237839509,-6361.71319973,0.000204,2]
[350952614,1738237839520,-21108.95512717,0.000204,2]
[350952616,1738237839531,-319.1452,0.000204,2]
[350952618,1738237839543,-92459.50642849,0.000204,2]
[350952620,1738237839553,-92210.05630299,0.000204,2]
[350952628,1738237840355,-10377.59079056,0.000204,2]
[350952629,1738237840410,-549.73316218,0.000204,2]
[350952630,1738237840425,-262089.60159378,0.000204,2]
[350952631,1738237840440,-5744.63922093,0.000204,2]
[350952632,1738237840463,-1084.15,0.000204,2]
[350952633,1738237840474,-328.86805204,0.000204,2]
[350952634,1738237840487,-4559.689305,0.000204,2]
[350952635,1738237840571,-34890.82039295,0.000204,2]
[350952636,1738237840583,-1641.19999999,0.000204,2]
[350952637,1738237840624,-310.96556057,0.000204,2]
[350952638,1738237840636,-49665.55306307,0.000204,2]
[350952639,1738237840834,-1713.72424316,0.000204,2]
[350952666,1738237843364,-816.924,0.000143,2]
[350952667,1738237843416,-467.99614637,0.000143,2]
[350952668,1738237843427,-542.0,0.000204,2]
[350952669,1738237843437,-161886.08313111,0.000204,2]
[350952670,1738237843449,-1854.39183861,0.000204,2]
[350952671,1738237843525,-534.029275,0.000204,2]
[350952672,1738237843536,-422.7577225,0.000204,2]
[350952673,1738237843547,-705.052,0.000204,2]
[350952674,1738237843558,-485.5958734,0.000204,2]
[350952675,1738237843570,-457.00438,0.000204,2]
[350952676,1738237843582,-551.409999,0.000204,2]
[350952677,1738237843594,-434.4,0.000204,2]
[350952678,1738237843605,-417.78399998,0.000204,2]
[350952679,1738237843619,-468.96,0.000204,2]
[350952680,1738237843633,-557.085015,0.000204,2]
[350952681,1738237843685,-4299.66999501,0.000204,2]
[350952945,1738237846358,-3142.16174804,0.000204,2]
[350952957,1738237846464,-2537.5,0.000204,2]
[350952963,1738237846517,-426.57748511,0.000204,2]
[350952974,1738237846620,-13170.0,0.000204,2]
[350952977,1738237846631,-266.54294648,0.000204,2]
[350952979,1738237846643,-1941.69667165,0.000204,2]
[350952981,1738237846655,-1930.4731242,0.000204,2]
[350952988,1738237846714,-16503.79928579,0.000204,2]
[350952991,1738237846725,-434.92799968,0.000204,2]
[350952993,1738237846744,-18000.20816387,0.000204,2]
[350953601,1738238065770,-1005.0,0.00017,5]
[350953604,1738238261329,-2004.2,0.0001491,4]
[350953607,1738238551982,-8301.33811517,0.0002,30]
[350953608,1738238581246,157.34,0.00010137,2]
[350953611,1738238708916,-689.41,0.00017618,2]
[350953630,1738238831672,677.27,0.00017171,2]
[350953631,1738238898391,550.0,0.00013,2]
[350953632,1738238899520,600.0,0.00015,2]
[350953703,1738239031628,-150.0,0.00017953,2]
[350953704,1738239031638,-150.0,0.00018009,2]
[350953705,1738239031648,-157.34,0.00018065,2]
[350953706,1738239031657,-150.0,0.00018492,2]
[350953707,1738239031666,-150.0,0.00018524,2]
[350953708,1738239031675,-250.0,0.00018951,2]
[350953709,1738239031685,-498.48,0.0001905,2]
[350953710,1738239031694,-197.83128831,0.00019061,2]
[350953711,1738239031719,-802.16871169,0.00019061,2]
[350953712,1738239031729,-172.69,0.00019091,2]
[350953713,1738239031739,-33.86302021,0.00019164,2]
[350953714,1738239031750,-466.13697979,0.00019164,2]
[350953715,1738239031761,-132.7996436,0.00019208,2]
[350953716,1738239031794,-148.9703564,0.00019208,2]
[350953717,1738239031804,-150.17,0.00019261,2]
[350953718,1738239031813,-497.44,0.00019378,2]
[350953719,1738239031828,-166.83,0.00019379,2]
[350953720,1738239031838,-677.27,0.00019435,2]
[350953721,1738239031848,-150.0,0.00019625,2]
[350953722,1738239031857,-150.0,0.00019749,2]
[350953723,1738239031867,-498.48,0.00019755,2]
[350953724,1738239031877,-150.0,0.0001984,2]
[350953725,1738239031887,-150.0,0.00019844,2]
[350953726,1738239031897,-2285.3964,0.000199,2]
[350953727,1738239031907,-172.69,0.00020046,2]
[350953728,1738239031917,-150.17,0.00020075,2]
[350953729,1738239031927,-150.0,0.00020089,2]
[350953730,1738239031937,-1000.0,0.00020096,2]
[350953731,1738239031947,-355.8029,0.00020096,2]
[350953732,1738239031957,-275.96267494,0.00020099,2]
[350953733,1738239031967,-1283.45646926,0.000201,3]
[350953734,1738239031980,-615.53079903,0.000201,3]
[350953735,1738239031989,-582.86920097,0.000201,2]
[350953736,1738239032001,-929.64434,0.000201,2]
[350953737,1738239032021,-702.68145903,0.000201,2]
[350953738,1738239032030,-3347.72402248,0.000202,2]
[350953739,1738239032041,-2052.3758564,0.000202,2]
[350953740,1738239032068,-4600.0,0.000202,2]
[350953741,1738239032081,-25307.21755208,0.000202,2]
[350953742,1738239032097,-321.86392329,0.000202,2]
[350953744,1738239037448,-283.71336898,0.000202,2]
[350953745,1738239037647,-4987.94296,0.000202,2]
[350953746,1738239037669,-1169.558175,0.000202,2]
[350953747,1738239037680,-880.82102011,0.000202,2]
[350953748,1738239037718,-1277.60417796,0.000202,2]
[350953749,1738239037730,-4818.1150437,0.000202,2]
[350953750,1738239037739,-1897.22894,0.000202,2]
[350953751,1738239037749,-891.9503,0.00020236,2]
[350953752,1738239037758,-151.34,0.00020238,2]
[350953753,1738239037767,-152.0,0.00020238,2]
[350953755,1738239037776,-152.0,0.00020281,3]
[350953757,1738239037786,-177.93552368,0.000203,2]
[350953759,1738239037796,-900.0,0.000203,7]
[350953760,1738239037805,-2500.0,0.000203,2]
[350953763,1738239037815,-53074.69021029,0.00020336,2]
[350953964,1738239039671,-371.61,0.00019562,2]
[350953966,1738239039681,-10200.89379836,0.00020336,2]
[350953968,1738239039692,-16519.27159135,0.00020336,2]
[350953970,1738239039707,-115755.10937847,0.00020336,2]
[350953973,1738239039717,-163.85812458,0.00020338,10]
[350953975,1738239039726,-2436.73,0.0002039,3]
[350953976,1738239039735,-19021.47370198,0.000204,2]
[350953979,1738239039752,-40405.34229634,0.000204,2]
[350953981,1738239039761,-2000.0,0.000204,2]
[350953983,1738239039770,-200.0,0.000204,2]
[350953985,1738239039781,-2000.0,0.000204,2]
[350953987,1738239039791,-200.0,0.000204,2]
[350953989,1738239039800,-2000.0,0.000204,2]
[350953991,1738239039809,-200.0,0.000204,2]
[350953993,1738239039818,-2000.0,0.000204,2]
[350953995,1738239039828,-200.0,0.000204,2]
[350953997,1738239039837,-1800.0,0.000204,7]
[350953998,1738239039847,-1436.15902358,0.00020402,4]
[350953999,1738239039857,-200.0,0.00020402,4]
[350954000,1738239039866,-4401.77658798,0.00020402,4]
[350954001,1738239039875,-12106.68076067,0.00020403,4]
[350954002,1738239039884,-150.0,0.00020406,2]
[350954003,1738239039893,-52462.28329621,0.00020409,4]
[350954004,1738239039902,-1099.45810628,0.00020409,4]
[350954005,1738239039911,-67459.58365188,0.00020413,4]
[350954006,1738239039920,-150.0,0.00020414,2]
[350954007,1738239039929,-1436.15902358,0.00020416,4]
[350954008,1738239039939,-4401.77658798,0.00020416,4]
[350954010,1738239039948,-2881.5144848,0.00020417,4]
[350954012,1738239039957,-1099.45810628,0.00020417,4]
[350954014,1738239039967,-200.0,0.00020419,4]
[350954016,1738239039976,-500.55058083,0.00020422,4]
[350954018,1738239039985,-52462.28329621,0.00020425,4]
[350954020,1738239039995,-12106.68076067,0.00020425,4]
[350954021,1738239040004,-67459.58365188,0.00020426,4]
[350954022,1738239040014,-2881.5144848,0.0002043,4]
[350954023,1738239040023,-1436.15902358,0.00020431,4]
[350954024,1738239040032,-500.55058083,0.00020435,4]
[350954025,1738239040042,-201.97,0.00020437,2]
[350954026,1738239040051,-3298.37431884,0.00020438,4]
[350954027,1738239040061,-752.57719937,0.00020438,2]
[350954029,1738239040071,-2881.5144848,0.00020441,4]
[350954031,1738239040081,-200.0,0.00020444,4]
[350954033,1738239040090,-150.0,0.0002045,2]
[350954035,1738239040100,-177.93552367,0.0002045,2]
[350954036,1738239040110,-1030.0,0.0002045,2]
[350954037,1738239040119,-3908.0,0.0002045,2]
[350954038,1738239040129,-151.455,0.0002045,2]
[350954039,1738239040138,-801.053,0.0002045,2]
[350954040,1738239040148,-150.0,0.00020452,2]
[350954041,1738239040157,-150.0,0.00020453,2]
[350954042,1738239040167,-150.0,0.00020457,2]
[350954043,1738239040176,-150.0,0.00020458,2]
[350954044,1738239040186,-498.48,0.0002046,2]
[350954045,1738239040195,-12106.68076067,0.00020461,4]
[350954046,1738239040205,-7214.21627671,0.00020467,4]
[350954047,1738239040214,-1000.0,0.0002047,2]
[350954048,1738239040223,-3298.37431884,0.00020471,4]
[350954049,1738239040232,-150.0,0.00020473,2]
[350954050,1738239040242,-150.0,0.00020475,2]
[350954051,1738239040251,-1099.45810628,0.00020476,4]
[350954052,1738239040260,-150.0,0.00020476,2]
[350954053,1738239040270,-200.0,0.00020477,4]
[350954054,1738239040280,-150.0,0.00020478,2]
[350954055,1738239040291,-150.0,0.00020484,2]
[350954056,1738239040300,-2881.5144848,0.00020485,4]
[350954057,1738239040310,-7214.21627671,0.00020486,4]
[350954058,1738239040323,-7214.21627671,0.00020486,4]
[350954059,1738239040332,-1271.0,0.00020489,2]
[350954060,1738239040341,-2021.0,0.00020489,2]
[350954061,1738239040350,-150.0,0.00020489,2]
[350954062,1738239040362,-568.0,0.00020489,2]
[350954063,1738239040371,-637.0,0.00020489,2]
[350954064,1738239040380,-1866.0,0.00020489,2]
[350954065,1738239040389,-2951.0,0.00020489,2]
[350954066,1738239040398,-782.0,0.00020489,2]
[350954067,1738239040407,-907.0,0.00020489,2]
[350954068,1738239040416,-1263.0,0.00020489,2]
[350954069,1738239040425,-1326.12,0.00020489,2]
[350954070,1738239040434,-269.259,0.00020489,2]
[350954071,1738239040443,-538.0,0.00020489,2]
[350954072,1738239040452,-150.0,0.00020489,2]
[350954073,1738239040461,-500.55058083,0.00020493,4]
[350954074,1738239040470,-12106.68076067,0.00020497,4]
[350954075,1738239040480,-3298.37431884,0.00020498,4]
[350954076,1738239040489,-1436.15902358,0.00020498,4]
[350954077,1738239040498,-4401.77658798,0.00020499,4]
[350954078,1738239040507,-200.0,0.00020499,4]
[350954079,1738239040517,-1898.9872683,0.000205,3]
[350954080,1738239040527,-1500.0,0.000205,2]
[350954081,1738239040537,-5000.0,0.000205,2]
[350954082,1738239040546,-2700.0,0.000205,7]
[350954083,1738239040555,-366.0,0.000205,2]
[350954084,1738239040564,-150.0,0.000205,2]
[350954085,1738239040573,-746.0,0.000205,2]
[350954086,1738239040583,-150.0,0.00020503,2]
[350954087,1738239040592,-150.0,0.00020505,2]
[350954088,1738239040601,-150.0,0.00020505,2]
[350954089,1738239040611,-150.0,0.00020512,2]
[350954090,1738239040620,-150.0,0.00020516,2]
[350954091,1738239040629,-150.0,0.00020519,2]
[350954092,1738239040639,-150.0,0.00020526,2]
[350954093,1738239040648,-500.0,0.00020534,2]
[350954094,1738239040657,-150.0,0.00020536,2]
[350954095,1738239040667,-150.0,0.0002054,2]
[350954096,1738239040676,-150.0,0.00020542,2]
[350954097,1738239040687,-510.57,0.00020543,7]
[350954098,1738239040697,-510.57,0.00020543,7]
[350954099,1738239040707,-150.0,0.00020543,2]
[350954100,1738239040722,-150.0,0.00020546,2]
[350954101,1738239040733,-150.0,0.00020547,2]
[350954102,1738239040743,-752.57719937,0.00020548,2]
[350954103,1738239040754,-150.0,0.00020549,2]
[350954104,1738239040764,-150.0,0.00020558,2]
[350954105,1738239040774,-1000.0,0.00020564,2]
[350954106,1738239040783,-150.0,0.00020569,2]
[350954107,1738239040793,-150.0,0.00020583,2]
[350954108,1738239040801,-150.0,0.00020584,2]
[350954109,1738239040811,-150.0,0.00020589,2]
[350954110,1738239040820,-200.0,0.0002059,4]
[350954111,1738239040829,-150.0,0.00020591,2]
[350954112,1738239040839,-150.0,0.00020593,2]
[350954113,1738239040848,-1332.04130663,0.00020596,2]
[350954114,1738239040858,-1053.10477253,0.00020599,5]
[350954115,1738239040867,-300.35986068,0.000206,2]
[350954116,1738239040877,-191.08302413,0.000206,2]
[350954117,1738239040887,-166.70228598,0.000206,2]
[350954118,1738239040896,-164.69637479,0.000206,2]
[350954119,1738239040905,-163.21604296,0.000206,2]
[350954120,1738239040914,-177.93552367,0.000206,2]
[350954121,1738239040923,-6731.51669604,0.000206,2]
[350954122,1738239040933,-3600.0,0.000206,7]
[350954123,1738239040943,-2406.49983926,0.000206,2]
[350954124,1738239040952,-150.0,0.00020601,2]
[350954125,1738239040961,-2000.0,0.00020604,2]
[350954126,1738239040972,-200.0,0.00020604,2]
[350954127,1738239040981,-2000.0,0.00020604,2]
[350954128,1738239040991,-200.0,0.00020604,2]
[350954129,1738239041000,-200.0,0.00020604,2]
[350954130,1738239041010,-200.0,0.00020604,2]
[350954131,1738239041019,-150.0,0.00020605,2]
[350954132,1738239041029,-150.0,0.0002061,2]
[350954133,1738239041040,-500.0,0.00020614,4]
[350954134,1738239041051,-150.0,0.00020618,2]
[350954135,1738239041061,-150.0,0.00020623,2]
[350954136,1738239041072,-150.0,0.00020628,2]
[350954137,1738239041082,-150.88462104,0.00020629,2]
[350954138,1738239041093,-1332.04130662,0.0002063,2]
[350954139,1738239041103,-752.57719937,0.0002063,2]
[350954140,1738239041112,-500.0,0.00020635,2]
[350954141,1738239041122,-150.0,0.00020635,2]
[350954142,1738239041131,-150.0,0.00020646,2]
[350954143,1738239041141,-150.0,0.00020646,2]
[350954144,1738239041152,-150.0,0.00020652,2]
[350954145,1738239041164,-150.0,0.00020653,2]
[350954146,1738239041174,-150.0,0.00020656,2]
[350954147,1738239041183,-150.0,0.00020657,2]
[350954148,1738239041193,-1811.15343348,0.00020658,2]
[350954149,1738239041203,-150.0,0.00020658,2]
[350954150,1738239041212,-1332.04130662,0.00020664,2]
[350954151,1738239041222,-1897.22895,0.0002067,2]
[350954152,1738239041388,-520.49,0.00020671,4]
[350954153,1738239041398,-500.0,0.00020671,4]
[350954154,1738239041408,-6731.51669596,0.00020674,2]
[350954155,1738239041417,-150.0,0.00020677,2]
[350954156,1738239041427,-500.0,0.00020679,4]
[350954157,1738239041437,-150.0,0.00020685,4]
[350954158,1738239041448,-150.0,0.00020685,4]
[350954159,1738239041458,-173.27670017,0.00020685,4]
[350954160,1738239041468,-150.0,0.00020685,4]
[350954161,1738239041477,-150.35205321,0.00020685,4]
[350954162,1738239041487,-150.57394636,0.00020685,4]
[350954163,1738239041496,-150.15550737,0.00020685,4]
[350954164,1738239041506,-150.0,0.00020685,4]
[350954165,1738239041516,-755.76227285,0.0002069,2]
[350954166,1738239041526,-755.76227285,0.0002069,2]
[350954167,1738239041536,-500.0,0.00020691,4]
[350954168,1738239041545,-500.0,0.00020691,4]
[350954169,1738239041555,-500.0,0.00020691,4]
[350954170,1738239041564,-500.0,0.00020691,4]
[350954171,1738239041574,-500.0,0.00020691,4]
[350954172,1738239041583,-500.0,0.00020691,4]
[350954173,1738239041594,-500.0,0.00020691,4]
[350954174,1738239041603,-500.0,0.00020691,4]
[350954175,1738239041613,-24596.95231044,0.00020696,2]
[350954176,1738239041623,-720.4321024,0.00020696,2]
[350954177,1738239041633,-1753.7388985,0.00020696,2]
[350954178,1738239041643,-1377.2867258,0.00020696,2]
[350954179,1738239041652,-1567.6076674,0.00020696,2]
[350954180,1738239041662,-1727.657818,0.00020696,2]
[350954181,1738239041672,-293.4736228,0.00020696,2]
[350954182,1738239041682,-1332.04130662,0.00020697,2]
[350954183,1738239041691,-1037.10875049,0.00020699,5]
[350954184,1738239041702,-10688.84954512,0.00020699,2]
[350954185,1738239041712,-500.0,0.00020699,2]
[350954186,1738239041722,-999.0,0.00020699,2]
[350954187,1738239041732,-300.0,0.00020699,2]
[350954188,1738239041742,-246.62818223,0.00020699,2]
[350954189,1738239041752,-666.0,0.00020699,2]
[350954190,1738239041762,-666.0,0.00020699,2]
[350954191,1738239041771,-666.0,0.00020699,2]
[350954192,1738239041781,-666.0,0.00020699,2]
[350954193,1738239041791,-264630.23235449,0.000207,2]
[350954196,1738239042293,-505.12267757,0.000207,2]
[350954198,1738239042306,-966.18606384,0.000207,2]
[350954199,1738239042319,-1526.265,0.000207,2]
[350954200,1738239042349,-619.89896345,0.000207,2]
[350954201,1738239042366,-5236.27577707,0.000207,2]
[350954202,1738239042379,-434.36,0.000207,2]
[350954214,1738239043103,-3065.189896,0.000207,2]
[350954216,1738239043115,-924.57190035,0.000207,2]
[350954219,1738239043127,-1644.5419948,0.000207,2]
[350954221,1738239043142,-3039.9,0.000207,2]
[350954229,1738239043207,-13686.82400472,0.000207,2]
[350954232,1738239043219,-8337.61673786,0.000207,2]
[350954343,1738239045591,-360.08234564,0.000207,2]
[350954347,1738239045646,-2563.19105493,0.000207,2]
[350954348,1738239045803,-307.68073367,0.000207,2]
[350954349,1738239045816,-4213.38385144,0.000207,2]
[350954350,1738239045857,-1712.43264,0.000207,2]
[350954351,1738239045869,-2419.1,0.000207,2]
[350954352,1738239045966,-2628.0339476,0.000207,2]
[350954353,1738239045979,-376.87925389,0.000207,2]
[350954354,1738239046026,-439.5943931,0.000207,2]
[350954388,1738239076826,47832.69534537,0.00023,120]
[350954389,1738239080092,-18000.0,0.000207,30]
[350954390,1738239301599,-150.0,0.00018649,2]
[350954391,1738239301622,-150.0,0.00018733,2]
[350954392,1738239301644,-150.0,0.00018733,2]
[350954393,1738239301666,-150.0,0.00018817,2]
[350954394,1738239301689,-500.0,0.00019164,2]